Cogmind - Beta 9.2 @@@ ROGUE MODE // 2019.11.14 @ 17:11:51 Player: Demise Result: Self-destructed Performance ------------- Evolutions (1) 500 Regions Visited (3) 600 Robots Destroyed (28) 140 Value Destroyed (365) 365 Prototype IDs (0) 0 Alien Tech Used (0) 0 Bonus (0) 0 TOTAL SCORE: 1605 Bonus ------- None Cogmind --------- Core Integrity 352/400 Matter 240/300 Energy 39/100 System Corruption 0% Temperature Cool (0) Movement Flying (357) Ox4 Location -9/Materials Parts ------- > --- POWER (1) -------- (None) > --- PROPULSION (2) --- Flight Unit Flight Unit > --- UTILITY (4) ------ Improved Heat Sink High-capacity Storage Unit Sensor Array Seismic Analyzer > --- WEAPON (2) ------- (None) > --- INVENTORY (12) --- Medium Matter Pod (100) Signal Interpreter Grenade Launcher Datajack Mining Laser Heavy Explosive Trap Peak State ------------ > --- POWER ------------ Light Nuclear Core > --- PROPULSION ------- Wheel Wheel > --- UTILITY ---------- High-capacity Storage Unit Sensor Array Improved Terrain Scanner Seismic Analyzer > --- WEAPON ----------- Medium Laser Light Assault Rifle > --- INVENTORY -------- Flight Unit Flight Unit Improved Heat Sink Medium Matter Pod Signal Interpreter Grenade Launcher Datajack Mining Laser Heavy Explosive Trap Heavy Explosive Trap [Rating: 13] Favorites ----------- Power Light Nuclear Core Engine Light Ion Engine Power Core Light Nuclear Core Propulsion Wheel Wheel Wheel Hover Unit Hover Unit Flight Unit Flight Unit Utility Seismic Analyzer Device Improved Terrain Scanner Storage Large Storage Unit Processor Seismic Analyzer Weapon Light Assault Rifle Energy Gun Medium Laser Ballistic Gun Light Assault Rifle Launcher Grenade Launcher Build | -11 -10 -10 -9 ------- Run | Scr Mat Min Mat Slots Evolved 2 | . . . 2 Power . | . . . . Propulsion . | . . . . Utility 2 | . . . 2 Weapon . | . . . . Parts Attached 31 | 9 12 4 6 Power 3 | . 2 1 . Engine 2 | . 2 . . Core 1 | . . 1 . Reactor . | . . . . Propulsion 15 | 5 8 . 2 Treads . | . . . . Leg . | . . . . Wheel 9 | 5 4 . . Hover 2 | . 2 . . Flight 4 | . 2 . 2 Utility 7 | 2 1 1 3 Device 4 | 1 . . 3 Storage 2 | . 1 1 . Processor 1 | 1 . . . Hackware . | . . . . Protection . | . . . . Artifact . | . . . . Weapon 6 | 2 1 2 1 Energy Gun 1 | . . 1 . Energy Cannon . | . . . . Ballistic Gun 3 | 2 1 . . Ballistic Cannon . | . . . . Launcher 2 | . . 1 1 Special Weapon . | . . . . Impact Weapon . | . . . . Slashing Weapon . | . . . . Piercing Weapon . | . . . . Special Melee Weapon . | . . . . Unidentified Prototypes . | . . . . Parts Lost 8 | . . 2 6 Power 2 | . . 1 1 Propulsion 2 | . . . 2 Utility 1 | . . . 1 Weapon 3 | . . 1 2 Highest Loss Streak 3 | . . 2 3 Average Slot Usage (%) 92 | . 91 99 86 Engine 2 | . 5 . . Core 7 | . . 13 10 Wheel 24 | . 27 28 16 Device 6 | . 3 . 21 Storage 11 | . 10 14 11 Processor 13 | . 14 14 11 Energy Gun 4 | . . 10 4 Ballistic Gun 17 | . 28 14 5 Launcher 2 | . . 3 5 Naked Turns . | . . . . Heaviest Build 42 | 4 22 40 42 Greatest Support 26 | 26 20 20 20 Greatest Overweight (x) 4 | 1 2 1 4 Average Overweight (x) 1 | . . . 2 Largest Inventory Capacity 12 | 4 10 12 12 Average Capacity 9 | 4 8 10 12 Most Carried 12 | 4 10 12 11 Average Carried 8 | 3 7 10 8 Final Capacity 12 | 4 10 12 12 Final Carried 12 | 4 10 12 6 Class Distribution -------------------- 50% | Mutant 40% | Scavenger-Mutant 9% | Scavenger-Skirmisher Dominant Class ---------------- Mutant | -10/Materials Scavenger-Mutant | -10/Mines Scavenger-Mutant | -9/Materials Resources | -11 -10 -10 -9 ----------- Run | Scr Mat Min Mat Matter Collected 945 | 420 300 190 35 Remotely . | . . . . Salvage Created 666 | 188 253 138 87 Parts 61 | 25 20 9 7 Haulers Intercepted 2 | . 2 . . Recyclers Shooed . | . . . . Parts Field Recycled . | . . . . Retrieved Matter . | . . . . Parts Self-Destructed . | . . . . Prevented . | . . . . Kills | -11 -10 -10 -9 ------- Run | Scr Mat Min Mat Combat Hostiles Destroyed 16 | . 6 5 5 Guns 10 | . 6 3 1 AOE 6 | . . 2 4 Classes Destroyed 7 | 3 2 1 1 Worker 3 | 2 1 . . Tunneler 5 | 5 . . . Hauler 2 | . 2 . . Recycler 2 | 1 1 . . Swarmer 12 | . 6 3 3 Grunt 2 | . . 2 . Sentry 2 | . . . 2 Best Kill Streak 4 | 4 4 3 3 Combat Bots Only 3 | . 3 3 3 Max Kills in Single Turn 3 | 1 1 2 3 Gunslinging . | . . . . Exploded 3 | . . 2 3 Melee . | . . . . Uniques/NPCs Destroyed . | . . . . Combat | -11 -10 -10 -9 -------- Run | Scr Mat Min Mat Damage Taken 676 | . 223 255 198 Core 179 | . 56 75 48 Absorbed by Shields . | . . . . Core Remaining (%) 73 | 100 . 47 . Volleys Fired 85 | 20 40 12 13 Largest 2 | 2 2 2 2 Hottest 70 | 40 40 70 70 Shots Fired 158 | 40 80 24 14 Gun 152 | 40 80 23 9 Cannon . | . . . . Launcher 6 | . . 1 5 Special . | . . . . Kinetic 146 | 40 80 18 8 Thermal 6 | . . 5 1 Explosive 6 | . . 1 5 Electromagnetic . | . . . . Robot Hit Streak 9 | 8 8 7 9 Robot Miss Streak 3 | 2 3 2 1 Penetration Max . | . . . . Secondary Targets . | . . . . Shots Hit Robots 96 | 25 43 16 12 Core Hits 48 | 13 16 8 11 Critical Hits . | . . . . Critical Kills . | . . . . Critical Parts Destroyed . | . . . . Melee Attacks . | . . . . Impact . | . . . . Slashing . | . . . . Piercing . | . . . . Sneak Attacks . | . . . . Combat Hostiles . | . . . . Follow-up Attacks . | . . . . Damage Inflicted 1142 | 261 377 232 272 Guns 856 | 261 377 152 66 Cannons . | . . . . Explosions 286 | . . 80 206 Melee . | . . . . Ramming . | . . . . Kinetic 806 | 261 377 114 54 Thermal 50 | . . 38 12 Explosive 286 | . . 80 206 Electromagnetic . | . . . . Impact . | . . . . Slashing . | . . . . Piercing . | . . . . Highest Corruption . | . . . . Average Corruption . | . . . . Corruption Purged . | . . . . Overload Shots . | . . . . Overflow Damage 18 | . . . 18 Projectiles . | . . . . Explosions 18 | . . . 18 Melee . | . . . . Knockbacks . | . . . . Impact . | . . . . Kinetic . | . . . . Secondary . | . . . . Self-Inflicted Damage 70 | . . 11 59 Shots 3 | . . 1 2 Rammed . | . . . . Targets Rammed . | . . . . Kicked . | . . . . Crushed . | . . . . Highest Temperature 116 | . . 116 37 Average Temperature 34 | . . 36 17 Received Heat Transfer 144 | . . 108 36 Siege Activations . | . . . . Robots Corrupted . | . . . . Combat Hostiles . | . . . . Parts Fried . | . . . . Impact Corruptions . | . . . . Robots Melted . | . . . . Combat Hostiles . | . . . . Parts Melted . | . . . . Heat Transferred 148 | . . 111 37 Parts Sabotaged . | . . . . Parts Stolen . | . . . . Parts Stripped . | . . . . Power Chain Reactions . | . . . . Missiles Intercepted . | . . . . Alert | -11 -10 -10 -9 ------- Run | Scr Mat Min Mat Peak Influence 210 | 40 210 139 168 Average Influence 77 | 23 87 71 100 Maximum Alert Level 1 | . 1 . . Low Security (%) 96 | 100 91 100 100 Level 1 3 | . 8 . . Level 2 . | . . . . Level 3 . | . . . . Level 4 . | . . . . Level 5 . | . . . . High Security . | . . . . Max Security . | . . . . Squads Dispatched 3 | . 2 . 1 Investigation 2 | . 1 . 1 Extermination . | . . . . Reinforcement 1 | . 1 . . Assault . | . . . . Garrison . | . . . . Intercept . | . . . . Construction Impeded . | . . . . Haulers Reinforced . | . . . . Stealth | -11 -10 -10 -9 --------- Run | Scr Mat Min Mat Distress Signals 1 | . 1 . . Communications Jammed . | . . . . Distress Signals . | . . . . Times Spotted 25 | . 12 5 8 Peak Tracking Total 5 | . 4 3 5 Tactical Retreats 2 | . 1 . 1 Traps | -11 -10 -10 -9 ------- Run | Scr Mat Min Mat Traps Triggered . | . . . . Indirectly . | . . . . Trap Hack Attempts . | . . . . Triggered . | . . . . Disarmed . | . . . . Reprogrammed . | . . . . Reused 1 | . . . 1 Traps Extracted . | . . . . Installed 1 | . . . 1 Triggered 1 | . . . 1 Machines | -11 -10 -10 -9 ---------- Run | Scr Mat Min Mat Machines Disabled 2 | . . 1 1 Max in Single Turn 1 | . . 1 1 Machines Sabotaged . | . . . . Garrisons Compromised . | . . . . Overloaded Fab Kills . | . . . . Fab Network Shutdowns . | . . . . Hacking | -11 -10 -10 -9 --------- Run | Scr Mat Min Mat Machines Accessed 7 | . 4 1 2 Terminals 6 | . 4 1 1 Fabricators . | . . . . Repair Stations . | . . . . Recycling Units . | . . . . Scanalyzers 1 | . . . 1 Garrison Access . | . . . . Total Hacks 20 | . 11 3 6 Successful 9 | . 4 2 3 Failed 10 | . 6 1 3 Catastrophic 2 | . . . 2 Database Lockouts 1 | . 1 . . Manual 16 | . 11 3 2 Terminals 18 | . 11 3 4 Fabricators . | . . . . Repair Stations . | . . . . Recycling Units . | . . . . Scanalyzers 2 | . . . 2 Garrison Access . | . . . . Terminal Hacks 2 | . 1 1 . Part Schematic 2 | . 1 1 . Fabricator Hacks . | . . . . Repair Station Hacks . | . . . . Recycling Unit Hacks . | . . . . Scanalyzer 2 | . . . 2 Insert Component 1 | . . . 1 Analyze 1 | . . . 1 Garrison Access Hacks . | . . . . Unauthorized Hacks 16 | . 11 2 3 Terminals 5 | . 3 1 1 Botnet 5 | . 3 1 1 Fabricators . | . . . . Repair Stations . | . . . . Recycling Units . | . . . . Scanalyzers . | . . . . Garrison Access . | . . . . Data Cores Recovered . | . . . . Used . | . . . . Hacking Detections 5 | . 2 1 2 Full Trace Events 2 | . . 1 1 Feedback Events . | . . . . Feedback Blocked . | . . . . Robot Schematics Acquired . | . . . . Robots Built . | . . . . Matter . | . . . . Time . | . . . . Total Robot Build Rating . | . . . . Part Schematics Acquired 3 | . 1 1 1 Parts Built . | . . . . Matter . | . . . . Time . | . . . . Total Part Build Rating . | . . . . Parts Repaired . | . . . . Time . | . . . . Parts Recycled . | . . . . Recycled Matter . | . . . . Retrieved Matter . | . . . . Retrieved Components . | . . . . Parts Scanalyzed 1 | . . . 1 Part Schematics Acquired 1 | . . . 1 Parts Damaged . | . . . . Bothacking | -11 -10 -10 -9 ------------ Run | Scr Mat Min Mat Used RIF Installer . | . . . . Robots Hacked . | . . . . Non-combat . | . . . . Combat . | . . . . Robot Hacks Applied . | . . . . Relay Couplers Released . | . . . . Robots Rewired . | . . . . Allies Hacked . | . . . . Hacks Repelled . | . . . . Allies | -11 -10 -10 -9 -------- Run | Scr Mat Min Mat Total Allies . | . . . . Largest Group . | . . . . Highest-Rated Group . | . . . . Highest-Rated Ally . | . . . . Total Orders . | . . . . Ally Attacks . | . . . . Total Damage . | . . . . Kills . | . . . . Allies Corrupted . | . . . . Allies Melted . | . . . . Intel | -11 -10 -10 -9 ------- Run | Scr Mat Min Mat Robot Analysis Total . | . . . . Derelict Logs Recovered 2 | . . 2 . Drone Launches . | . . . . Drone Recoveries . | . . . . Exploration | -11 -10 -10 -9 ------------- Run | Scr Mat Min Mat Turns Passed 1248 | 160 449 366 273 Spaces Moved 985 | 132 305 356 192 Core 204 | 127 77 . . Treads . | . . . . Legs . | . . . . Wheels 779 | 5 228 356 190 Hover . | . . . . Flight 2 | . . . 2 Fastest Speed 50 | 50 80 80 90 Average Speed 89 | 61 89 89 111 Slowest Speed 357 | 100 100 90 357 Overloaded Moves . | . . . . Propulsion Burnouts . | . . . . Robots Hopped . | . . . . Cave-ins Triggered . | . . . . Exploration Rate (%) 34 | 3 49 67 20 Regions Visited 3 Branch Regions 1 Pre-discovered Areas 1 | . . 1 . Known Exits Taken . | . . . . Unknown Exits Taken 3 | 1 1 1 . Scrap Searched 2 | . . 2 . Spaces Dug . | . . . . Terrain Destroyed 62 | . . 6 56 Melee . | . . . . Projectile . | . . . . AOE 62 | . . 6 56 Actions | -11 -10 -10 -9 --------- Run | Scr Mat Min Mat Total 1213 | 177 414 382 240 Wait 53 | . 26 1 26 Move 982 | 131 304 355 192 Hop . | . . . . Pick Up 35 | 11 18 6 . Fast Attach 5 | 2 2 1 . Attach 16 | 5 4 1 6 Detach 2 | 1 . . 1 Swap 10 | 2 6 2 . Drop 24 | 5 14 4 1 Fire 85 | 20 40 12 13 Melee . | . . . . Ram . | . . . . Kick . | . . . . Crush . | . . . . Escape Stasis . | . . . . Rewire . | . . . . Trap 1 | . . . 1 Miscellaneous . | . . . . Route ------- -11/Scrapyard -10/Materials -10/Mines (discovered 2 exits: *Mat x2) -9/Materials History --------- Turn | Location | Event 13 | -11/Scrapyard | Discovered new exit (range 15) 161 | -11/Scrapyard | Entered Materials 311 | -10/Materials | Build established: Mutant 567 | -10/Materials | Discovered new exit (range 14) 590 | -10/Materials | Central database locked down 610 | -10/Materials | Entered Mines 652 | -10/Mines | Learned Materials terminal intel 720 | -10/Mines | Discovered new exit (range 5) 798 | -10/Mines | Discovered new exit (range 7) 821 | -10/Mines | Found a hidden stash of uninstalled traps 867 | -10/Mines | Learned location of Zion (-6) 890 | -10/Mines | Core integrity fell below 50% 930 | -10/Mines | Build established: Scavenger-Mutant 976 | -10/Mines | Entered Materials 976 | -9/Materials | Evolved 2 slots: Utility x2 977 | -9/Materials | Loaded intel: 12 terminal locations 1249 | -9/Materials | Self-destructed Last Messages --------------- 01162_ Connecting with Terminal... >>Trojan(Botnet) Trojan loaded successfully. Testing... Terminal linked with 0 systems. Awaiting botnet instructions. 01162_ ALERT: Suspicious activity at Terminal M011. Dispatching Investigation squad. 01163_ K-01 Serf collects debris. 01227_ K-01 Serf cleans the Atomic Centrifuge. 01231_ Wheel destroyed. 01233_ The unstable cave ceiling collapses. 01233_ Atomic Centrifuge disabled. 01233_ Imp. Terrain Scanner destroyed. 01233_ Destroyed Imp. Terrain Scanner. 01233_ Lgt. Nuclear Core destroyed. 01233_ Destroyed Lgt. Nuclear Core. 01233_ Emergency Access malfunctions. 01233_ Atomic Centrifuge disabled. 01237_ Y-45 Defender destroyed. Map ----- +----------------------------------------------------+ | ???????????????????????"""???????????????????????? | | ???????????????????????"T????????????????????????? | | ???????????????????????"""???????????????????????? | | ?????????????????????????????????????????????????? | | ?????????????????????????????????????????????????? | | ?????????????????????????????????????????????????? | | ?????????????????????????????????????????????????? | | ?????????????????????????????????????????????????? | | ?????????????????????????????????????????????????? | | ?????????????????????????????????????????????????? | | ????????????????????????% ???????????????????????? | | ???????????????????????? ?? ?????????????????? | | ???????????????????????| ??? u ????????????????? | | ?????????????????????? ""? #? ?????????????? | | ??????????????????????? """ #???????????????? | | ?????????????????????? "" w ???????????????? | | ??????????????????????? ????????????????? | | ????????????????????#? ? ??????#??????????? | | ????#???????????????????# #?????????????????? | | ??????????#???#???????T?# #?????????????????? | | ????? ??#????????? ? ?+ #?????????????????? | | ???????"???? #??????????# #?????? ??????????? | | ???? ??"????##???#??????# # ""??????????????? | | ?? ????"??#?????????#?### #?????????#???????? | | ????? ? ??????##????#?# # ????? #????????? | | ?? #?####??#?????#?##??# @ #??? ?????#???????? | | ?????#??#???####???#??## g #?""??????????????? | | ?##????##??#???????# ## #?????????????????? | | #??########???##?# / #?#??#??????????????? | | ?###= """ #####??###### # #?????????????????? | | #?## "Y" ###??##?##?# / " #?##????????????????? | | #??# #??####?? " # #?????#???????????? | | ??## ######### / # #?#?#????? ???????? | | ?### ! ## """ ## /# #?#??#????????????? | | ## #] ## """ # [% ### #?????????????????? | | # # % ## """ ## = #?# #?#?????#?????????? | | % ### # #####+####?#????????????" | | ### # # #??????? ??????? | | + ####### #?##???????????? | | # ####+### # #?????? ???????? | | T # #??? ?????????? | | ### "" + #??????????????? | | ### # ####???????????? | | ### ############ # ###??#?????????? | | ### ############# ## #??#???????????? | | ### ##??? """ # ## #?#?#?#????????? | | #?# ##?? """"" # #############????????????? | | ### ###? """"" + #??????#??????#??????????? | | # #? ?""""" # ###?#???#????????????????? | | # ## ? """ # #??##???#??##????????????? | +----------------------------------------------------+ Best States ------------- Heat Dissipation 28 Energy Generation 14 Energy Capacity 160 Matter Stores 300 Matter Capacity 300 Sight Range 16 Robot Scan Range 10 Terrain Scan Range 16 Terrain Scan Density 60 Evasion (%) 50 Item Schematics ----------------- Hcp. Storage Unit | -10/Materials | Hacked Hcp. Matter Pod | -10/Mines | Hacked Grenade Launcher | -9/Materials | Scanalyzed Robot Schematics ------------------ None Fabricated ------------ Nothing Alien Tech Used ----------------- None Achievements -------------- None Challenges ------------ None Game ------ Seed ImpulseAdvancedLance Manual? 0 Play Time 00:18:48 Cumulative 121.4 hours Start 2019.11.14 @ 16:56:01 End 2019.11.14 @ 17:11:51 Sessions 1 Manual Loads 0 Difficulty Rogue Special Mode None Game No. 164 Rogue 153 Adventurer 11 Explorer 0 Win Type - Total 0 Types 0/0/0/0/0/0/0 Lore% 43 Gallery% 54 Achievement% 37 Wizard Run 0 Options --------- ASCII 0 Keyboard 1 Movement Numpad Keybinds 0 Fullscreen 1 Font 12/Terminus Map View 83x54 Tactical HUD 1 Map Filters NONE Filters NONE Steam 1 RUN: 2f43f808-7796-4782-88c5-07c1859f4497